bitfinex/quotes_BTCUSD_20240721
["timestamp","ask_amount","ask_price","bid_price","bid_amount"]
[1721583433105,1.32654368,67493.0,67492.0,0.001924]
[1721583433314,1.38221589,67493.0,67492.0,0.001924]
[1721583433520,1.36821589,67493.0,67492.0,0.000924]
[1721583433736,1.38221589,67493.0,67492.0,0.001924]
[1721583433930,1.36821589,67493.0,67492.0,0.001924]
[1721583434746,1.38221589,67493.0,67492.0,0.001924]
[1721583438054,1.43221589,67493.0,67492.0,0.001924]
[1721583439007,1.34054368,67493.0,67492.0,0.001924]
[1721583441106,1.32654368,67493.0,67492.0,0.001924]
[1721583441427,1.34054368,67493.0,67492.0,0.001924]
[1721583441994,1.32654368,67493.0,67492.0,0.000924]
[1721583442454,1.45126439,67493.0,67492.0,0.001924]
[1721583442630,1.43726439,67493.0,67492.0,0.000924]
[1721583443030,1.46526439,67493.0,67492.0,0.001924]
[1721583443410,1.46526552,67493.0,67492.0,0.001924]
[1721583443583,1.56682144,67493.0,67492.0,0.001924]
[1721583444523,1.46526552,67493.0,67492.0,0.001924]
[1721583444730,1.46610552,67493.0,67492.0,0.001924]
[1721583445333,1.35538368,67493.0,67492.0,0.001924]
[1721583445835,1.46610552,67493.0,67492.0,0.001924]
[1721583446263,1.43810552,67493.0,67492.0,0.000924]
[1721583446700,1.45210552,67493.0,67492.0,0.001924]
[1721583446908,1.43810552,67493.0,67492.0,0.001924]
[1721583447119,1.34138368,67493.0,67492.0,0.001924]
[1721583448465,1.45210552,67493.0,67492.0,0.001924]
[1721583448899,1.62420552,67493.0,67492.0,0.001924]
[1721583449240,1.45210552,67493.0,67492.0,0.001924]
[1721583449668,1.28048368,67493.0,67492.0,0.001924]
[1721583449834,1.39117414,67493.0,67492.0,0.001924]
[1721583450480,1.28048368,67493.0,67492.0,0.001924]
[1721583450830,1.56328842,67493.0,67492.0,0.001924]
[1721583451034,1.45258368,67493.0,67492.0,0.001924]
[1721583451296,1.28048368,67493.0,67492.0,0.001924]
[1721583451788,1.45258368,67493.0,67492.0,0.001924]
[1721583452224,1.39117549,67493.0,67492.0,0.001924]
[1721583452431,1.28048368,67493.0,67492.0,0.001924]
[1721583452814,1.45258368,67493.0,67492.0,0.001924]
[1721583453224,1.28048368,67493.0,67492.0,0.001924]
[1721583453908,1.45258368,67493.0,67492.0,0.001924]
[1721583454326,1.28048368,67493.0,67492.0,0.001924]
[1721583454734,1.45258368,67493.0,67492.0,0.001924]
[1721583455348,1.28048368,67493.0,67492.0,0.001924]
[1721583455779,1.45258368,67493.0,67492.0,0.001924]
[1721583456396,1.37358368,67493.0,67492.0,0.001924]
[1721583457345,1.20148368,67493.0,67492.0,0.001924]
[1721583457781,1.37358368,67493.0,67492.0,0.001924]
[1721583458350,1.20148368,67493.0,67492.0,0.001924]
[1721583458762,1.37358368,67493.0,67492.0,0.001924]
[1721583459286,1.20148368,67493.0,67492.0,0.001924]
[1721583459665,1.37358368,67493.0,67492.0,0.001924]
[1721583460247,1.20148368,67493.0,67492.0,0.001924]
[1721583460732,1.37358368,67493.0,67492.0,0.001924]
[1721583461187,2.26075725,67493.0,67492.0,0.001924]
[1721583461609,2.43995725,67493.0,67492.0,1e-08]
[1721583461848,1.497666,67488.0,67487.0,0.000924]
[1721583462030,2.74992787,67488.0,67487.0,0.000924]
[1721583462240,2.61304887,67488.0,67487.0,0.000924]
[1721583462662,2.62855886,67488.0,67487.0,0.000924]
[1721583463297,2.57785286,67488.0,67487.0,0.000924]
[1721583463500,2.48488586,67488.0,67487.0,0.001924]
[1721583463639,2.3288301,67488.0,67487.0,0.001924]
[1721583464752,2.46157261,67488.0,67487.0,0.001924]
[1721583464978,2.3288301,67488.0,67487.0,0.001924]
[1721583465357,2.2788301,67488.0,67487.0,0.001924]
[1721583465554,1.7865821,67488.0,67487.0,0.001924]
[1721583465758,1.6515021,67488.0,67487.0,0.001924]
[1721583466185,1.76212083,67488.0,67487.0,0.001924]
[1721583466390,1.6515021,67488.0,67487.0,0.001924]
[1721583466617,1.3551541,67488.0,67487.0,0.001924]
[1721583467713,1.44365359,67488.0,67487.0,0.001924]
[1721583468327,1.3551541,67488.0,67487.0,0.001924]
[1721583469353,1.44369139,67488.0,67487.0,0.001924]
[1721583469562,1.3551541,67488.0,67487.0,0.001924]
[1721583471490,1.46582571,67488.0,67487.0,0.001924]
[1721583472304,1.3551541,67488.0,67487.0,0.001924]
[1721583472717,1.5272541,67488.0,67487.0,0.001924]
[1721583473162,1.6379433,67488.0,67487.0,0.001924]
[1721583473374,1.4658433,67488.0,67487.0,0.001924]
[1721583473698,1.36414104,67488.0,67487.0,0.001924]
[1721583476671,1.53624104,67488.0,67487.0,0.001924]
[1721583477185,1.36414104,67488.0,67487.0,0.001924]
[1721583477914,1.53624104,67488.0,67487.0,0.001924]
[1721583478328,1.36414104,67488.0,67487.0,0.001924]
[1721583478770,1.53624104,67488.0,67487.0,0.001924]
[1721583479383,1.36414104,67488.0,67487.0,0.001924]
[1721583479794,1.53624104,67488.0,67487.0,0.001924]
[1721583480341,1.36414104,67488.0,67487.0,0.001924]
[1721583480746,1.53624104,67488.0,67487.0,0.001924]
[1721583481250,1.36414104,67488.0,67487.0,0.001924]
[1721583481849,1.53624104,67488.0,67487.0,0.001924]
[1721583482231,1.36414104,67488.0,67487.0,0.001924]
[1721583482684,1.53624104,67488.0,67487.0,0.001924]
[1721583483281,1.36414104,67488.0,67487.0,0.001924]
[1721583483699,1.53624104,67488.0,67487.0,0.001924]
[1721583484401,1.36414104,67488.0,67487.0,0.001924]
[1721583484736,1.53624104,67488.0,67487.0,0.001924]
[1721583485370,1.36414104,67488.0,67487.0,0.001924]
[1721583485776,1.53624104,67488.0,67487.0,0.001924]
[1721583486217,1.36414104,67488.0,67487.0,0.001924]
[1721583486891,1.53624104,67488.0,67487.0,0.001924]
[1721583487289,1.36414104,67488.0,67487.0,0.001924]
[1721583487702,1.53624104,67488.0,67487.0,0.001924]
[1721583488285,1.36414104,67488.0,67487.0,0.001924]
[1721583488921,1.53624104,67488.0,67487.0,0.001924]
[1721583490070,1.55629036,67488.0,67487.0,0.001924]
[1721583491059,1.85263836,67488.0,67487.0,0.001924]
[1721583494065,1.98539234,67488.0,67487.0,0.001924]
[1721583494265,1.85263836,67488.0,67487.0,0.001924]
[1721583494867,1.98539234,67488.0,67487.0,0.001924]
[1721583495914,1.85263836,67488.0,67487.0,0.001924]
[1721583498843,0.05249693,67488.0,67487.0,1.179459]
[1721583499128,0.36598288,67508.0,67487.0,1.179459]
[1721583499129,0.08851417,67500.0,67494.0,0.296318]
[1721583499342,0.08935417,67513.0,67501.0,0.148145]
[1721583499555,0.00084,67513.0,67501.0,0.41452732]
[1721583499779,0.44527,67502.0,67501.0,0.30769719]
[1721583499979,0.44527,67502.0,67490.0,0.1308945]
[1721583499980,0.00084,67502.0,67490.0,0.0642]
[1721583500188,0.00084,67502.0,67487.0,0.077024]
[1721583500189,0.00084,67502.0,67495.0,0.0761]
[1721583500383,0.00084,67502.0,67494.0,0.0642]
[1721583500384,0.00084,67502.0,67501.0,0.1403]
[1721583500665,0.00084,67502.0,67501.0,0.26336499]
[1721583500871,0.00184,67502.0,67501.0,0.26336499]
[1721583501429,0.77706894,67502.0,67501.0,0.18726499]
[1721583501630,0.77706894,67502.0,67501.0,0.0642]
[1721583501631,1.07235594,67502.0,67501.0,0.0642]
[1721583501958,1.07235594,67502.0,67496.0,0.1403]
[1721583501959,0.740772,67497.0,67496.0,0.1403]
[1721583502161,0.87583267,67497.0,67496.0,0.1403]
[1721583502520,0.87583267,67497.0,67487.0,0.000924]
[1721583502521,0.148174,67488.0,67487.0,0.000924]
[1721583502921,0.03555458,67496.0,67487.0,0.000924]
[1721583503122,0.148172,67490.0,67487.0,0.000924]
[1721583503312,0.03593878,67489.0,67488.0,0.1403]
[1721583504067,0.18411078,67489.0,67488.0,0.1403]
[1721583505264,0.18811078,67489.0,67488.0,0.1403]
[1721583505469,0.18811078,67489.0,67488.0,1.3889]
[1721583505470,0.78079878,67489.0,67488.0,1.3889]
[1721583505670,0.78079878,67489.0,67487.0,0.000924]
[1721583505671,0.444522,67488.0,67487.0,0.000924]
[1721583505885,1.17326655,67488.0,67487.0,0.000924]
[1721583508194,0.58357055,67488.0,67487.0,0.000924]
[1721583508601,0.87691855,67488.0,67487.0,0.000924]
[1721583509003,0.87891855,67488.0,67487.0,0.001924]
[1721583509351,0.58257055,67488.0,67487.0,0.001924]
[1721583510019,0.87891855,67488.0,67487.0,0.001924]
[1721583510620,0.88391855,67488.0,67487.0,0.001924]
[1721583511107,0.88191855,67488.0,67487.0,0.000924]
[1721583511309,0.88691855,67488.0,67487.0,0.000924]
[1721583511513,0.89391855,67488.0,67487.0,0.001924]
[1721583511889,0.87691855,67488.0,67487.0,0.000924]
[1721583512426,0.88991855,67488.0,67487.0,0.001924]
[1721583513267,0.88191855,67488.0,67487.0,0.000924]
[1721583513893,0.87691855,67488.0,67487.0,0.000924]
[1721583514276,0.87991855,67488.0,67487.0,0.000924]
[1721583514719,0.88691855,67488.0,67487.0,0.001924]
[1721583514923,0.89191855,67488.0,67487.0,0.001924]
[1721583515341,0.89191855,67488.0,67487.0,0.000924]
[1721583515342,0.88491855,67488.0,67487.0,0.000924]
[1721583515538,0.89291855,67488.0,67487.0,0.001924]
[1721583515677,0.59657055,67488.0,67487.0,0.001924]
[1721583516305,0.59657055,67488.0,67487.0,0.066124]
[1721583517043,0.89291855,67488.0,67487.0,0.066124]
[1721583524101,1.18926655,67488.0,67487.0,0.001924]
[1721583525991,1.25316655,67488.0,67487.0,0.001924]
[1721583526733,1.18926655,67488.0,67487.0,0.001924]
[1721583529958,1.36136655,67488.0,67487.0,0.001924]
[1721583533442,1.18926655,67488.0,67487.0,0.001924]
[1721583533638,0.89291855,67488.0,67487.0,0.143824]
[1721583535213,1.18926655,67488.0,67487.0,0.143824]
[1721583535885,1.18926655,67488.0,67487.0,0.063124]
[1721583536727,1.36136655,67488.0,67487.0,0.063124]
[1721583537369,1.18926655,67488.0,67487.0,0.063124]
[1721583537745,1.36136655,67488.0,67487.0,0.063124]
[1721583538427,1.18926655,67488.0,67487.0,0.063124]
[1721583538905,1.36136655,67488.0,67487.0,0.063124]
[1721583539302,1.18926655,67488.0,67487.0,0.063124]
[1721583539829,1.36136655,67488.0,67487.0,0.063124]
[1721583540297,1.18926655,67488.0,67487.0,0.063124]
[1721583541444,0.89291855,67488.0,67487.0,0.063124]
[1721583543521,0.89291855,67488.0,67487.0,0.139024]
[1721583543522,0.016,67488.0,67487.0,0.139024]
[1721583543738,0.016,67488.0,67487.0,0.26509622]
[1721583543950,0.016,67488.0,67487.0,0.26492683]
[1721583544171,0.016,67488.0,67487.0,0.26213283]
[1721583544374,0.016,67488.0,67487.0,0.26113283]
[1721583544629,0.008,67488.0,67487.0,0.26113283]
[1721583544827,0.002,67488.0,67487.0,0.12403283]
[1721583544981,0.002,67488.0,67487.0,0.12503283]
[1721583545187,0.002,67488.0,67487.0,0.12403283]
[1721583545550,0.002,67488.0,67487.0,0.26073283]
[1721583545704,0.003,67488.0,67487.0,0.26073283]
[1721583545870,0.1,67491.0,67487.0,0.26073283]
[1721583546075,0.1,67491.0,67489.0,0.0608]
[1721583546277,0.1,67491.0,67490.0,0.12590283]
[1721583546490,0.1,67492.0,67490.0,0.12310883]
[1721583546687,0.1,67492.0,67491.0,0.12310883]
[1721583547025,0.1,67492.0,67490.0,1.2486]
[1721583547228,0.1,67492.0,67491.0,0.12309302]
[1721583547780,0.00084,67493.0,67491.0,0.12309302]
[1721583547781,0.10084,67493.0,67492.0,0.0759]
[1721583547958,0.10084,67493.0,67492.0,0.19898668]
[1721583549359,0.00084,67493.0,67492.0,0.25978668]
[1721583549737,0.00084,67493.0,67492.0,0.25978562]
[1721583549938,0.00384,67493.0,67492.0,0.25978562]
[1721583550203,0.152003,67493.0,67492.0,0.25978562]
[1721583550530,0.252003,67493.0,67492.0,0.1367]
[1721583550726,0.249003,67493.0,67492.0,0.1367]
[1721583551168,0.249003,67493.0,67492.0,0.1377]
[1721583551545,0.249003,67493.0,67492.0,0.1367]
[1721583551745,0.249003,67493.0,67492.0,0.1407]
[1721583552083,0.249003,67493.0,67492.0,0.25978967]
[1721583552284,0.249003,67493.0,67492.0,0.26278967]
[1721583552496,0.251003,67493.0,67492.0,0.1397]
[1721583553527,0.249003,67493.0,67492.0,0.1397]
[1721583553750,0.10084,67493.0,67492.0,0.1397]
[1721583553978,0.10184,67493.0,67492.0,0.1397]
[1721583554585,0.10184,67493.0,67492.0,0.1367]
[1721583554936,0.1,67493.0,67492.0,0.80101152]
[1721583555122,0.08916171,67502.0,67501.0,0.148145]
[1721583555123,0.00084,67502.0,67501.0,0.148145]
[1721583555330,0.00084,67512.0,67511.0,0.148124]
[1721583555533,0.00084,67512.0,67511.0,0.40791202]
[1721583555741,0.00084,67512.0,67511.0,0.70416002]
[1721583555938,0.00084,67512.0,67511.0,0.40791202]
[1721583556157,0.00084,67512.0,67511.0,0.55603602]
[1721583556385,0.00084,67512.0,67511.0,0.25978802]
[1721583556598,0.00084,67512.0,67511.0,0.1367]
[1721583556811,0.00084,67512.0,67511.0,0.25973751]
[1721583557137,0.00184,67512.0,67511.0,0.26573751]
[1721583557911,0.00184,67512.0,67511.0,0.26673751]
[1721583558127,0.00184,67512.0,67511.0,0.26573751]
[1721583558535,0.00284,67512.0,67511.0,0.42286151]
[1721583558919,0.00284,67512.0,67511.0,1.67146151]
[1721583559768,0.00284,67512.0,67511.0,1.548424]
[1721583559974,0.00284,67512.0,67511.0,1.67146096]
[1721583561601,0.00284,67512.0,67511.0,1.96770896]
[1721583562423,0.00284,67512.0,67511.0,1.96770918]
[1721583562832,0.00284,67512.0,67511.0,1.548424]
[1721583562988,0.00284,67512.0,67511.0,1.67146233]
[1721583563458,0.00284,67512.0,67511.0,1.96771033]
[1721583565010,0.00284,67512.0,67511.0,0.71911033]
[1721583565954,0.00284,67512.0,67511.0,0.596072]
[1721583566340,0.00284,67512.0,67511.0,0.7191113]
[1721583569312,0.00284,67512.0,67511.0,0.596072]
[1721583569517,0.00284,67512.0,67511.0,0.71911129]
[1721583571029,0.00284,67512.0,67511.0,1.01535929]
[1721583571499,0.00284,67512.0,67511.0,0.71911129]
[1721583572213,0.00284,67512.0,67511.0,0.71911037]
[1721583573957,0.00284,67512.0,67511.0,0.95558183]
[1721583574170,0.00284,67512.0,67511.0,0.9555714]
[1721583574378,0.00284,67512.0,67511.0,0.90365492]
[1721583575019,0.00284,67512.0,67511.0,1.19990292]
[1721583575194,0.00284,67512.0,67511.0,0.90365492]
[1721583575762,0.00284,67512.0,67511.0,0.596072]
[1721583575966,0.00284,67512.0,67511.0,0.90364743]
[1721583576767,0.00284,67512.0,67511.0,2.15224743]
[1721583578990,0.00284,67512.0,67511.0,2.1522526]
[1721583579598,0.00284,67512.0,67511.0,2.1522539]
[1721583581836,0.00284,67512.0,67511.0,2.15225277]
[1721583588517,0.00284,67512.0,67511.0,1.844672]
[1721583588717,0.00284,67512.0,67511.0,2.15226318]
[1721583591431,0.00284,67512.0,67511.0,1.85601518]
[1721583591582,0.00284,67512.0,67511.0,1.57119118]
[1721583591785,0.00284,67512.0,67511.0,1.2636]
[1721583591988,0.00284,67512.0,67511.0,1.57120013]
[1721583592196,0.03625477,67512.0,67511.0,1.57120013]
[1721583592406,0.10285477,67512.0,67511.0,1.38664906]
[1721583592756,0.10285477,67512.0,67511.0,1.57122265]
[1721583594493,0.10285477,67512.0,67511.0,1.57123247]
[1721583594693,0.10285477,67512.0,67511.0,1.63783247]
[1721583594694,0.00284,67512.0,67511.0,1.63783247]
[1721583594937,0.00284,67512.0,67511.0,2.37845247]
[1721583595138,0.00284,67512.0,67511.0,2.3784097]
[1721583596809,0.00284,67512.0,67511.0,2.95973944]
[1721583597008,0.00084,67523.0,67522.0,1.183996]
[1721583597205,0.00084,67523.0,67522.0,1.4915857]
[1721583598061,0.00084,67523.0,67522.0,1.183996]
[1721583598264,0.00084,67523.0,67522.0,1.49150275]
[1721583598472,0.00084,67523.0,67522.0,1.50550275]
[1721583598919,0.00084,67523.0,67522.0,1.49150275]
[1721583599318,0.00084,67523.0,67522.0,1.50550275]
[1721583599514,0.00084,67523.0,67522.0,1.49150275]
[1721583599933,0.00084,67523.0,67522.0,1.50550275]
[1721583600348,0.00084,67523.0,67522.0,1.51950275]
[1721583600904,0.00084,67523.0,67522.0,1.197996]
[1721583601064,0.00084,67523.0,67522.0,1.50549836]
[1721583601269,0.00084,67523.0,67522.0,1.51949836]
[1721583601805,0.00084,67523.0,67522.0,1.50549836]
[1721583602014,0.00084,67523.0,67522.0,1.51949836]
[1721583602350,0.00084,67523.0,67522.0,1.7238801]
[1721583602550,0.00084,67523.0,67522.0,2.51025017]
[1721583602750,0.00084,67523.0,67522.0,2.32150311]
[1721583602950,0.00084,67523.0,67522.0,2.44641779]
[1721583603171,0.00084,67523.0,67522.0,2.09581213]
[1721583603377,0.00084,67523.0,67522.0,2.03181213]
[1721583603705,0.00184,67523.0,67522.0,1.74562967]
[1721583603906,0.00184,67523.0,67522.0,1.84562967]
[1721583604104,0.00184,67523.0,67522.0,1.97337998]
[1721583604306,0.00184,67523.0,67522.0,2.10875675]
[1721583604663,0.00184,67523.0,67522.0,2.08908963]
[1721583604860,0.00184,67523.0,67522.0,2.10875675]
[1721583605059,0.00184,67523.0,67522.0,2.28085675]
[1721583605320,0.00184,67523.0,67522.0,2.15308799]
[1721583605517,0.00184,67523.0,67522.0,2.10875675]
[1721583605766,0.00184,67523.0,67522.0,2.54802353]
[1721583606168,0.00184,67523.0,67522.0,2.43714931]
[1721583606522,0.00084,67533.0,67526.0,1.432819]
[1721583606721,0.00084,67533.0,67526.0,1.75260074]
[1721583606924,0.00084,67533.0,67526.0,2.45484731]
[1721583607050,0.00084,67533.0,67526.0,2.12647105]
[1721583607258,0.00084,67533.0,67526.0,2.10432475]
[1721583607460,0.00084,67533.0,67526.0,2.06003237]
[1721583608107,0.00084,67533.0,67526.0,2.23213237]
[1721583608312,0.00084,67533.0,67526.0,2.06003237]
[1721583608674,0.00084,67533.0,67526.0,2.07403237]
[1721583609102,0.00084,67533.0,67526.0,2.24613237]
[1721583609300,0.00084,67533.0,67526.0,2.07403237]
[1721583610023,0.00084,67533.0,67526.0,2.24613237]
[1721583610201,0.00084,67533.0,67526.0,1.65485037]
[1721583610790,0.00084,67533.0,67526.0,1.66885037]
[1721583612882,0.00084,67533.0,67526.0,1.66889245]
[1721583615538,0.00084,67533.0,67526.0,1.71889245]
[1721583616063,0.00084,67533.0,67526.0,1.36141874]
[1721583616267,0.00084,67533.0,67526.0,1.66888844]
[1721583616590,0.00084,67533.0,67526.0,1.36141874]
[1721583616790,0.00084,67533.0,67526.0,1.66888839]
[1721583618949,0.00084,67533.0,67526.0,1.71888839]
[1721583619147,0.00084,67533.0,67526.0,1.65651874]
[1721583619360,0.00084,67533.0,67526.0,1.79185097]
[1721583620197,0.00084,67533.0,67526.0,2.26013297]
[1721583620411,0.00084,67533.0,67526.0,2.08803297]
[1721583620621,0.00084,67533.0,67526.0,1.79185097]
[1721583620813,0.00084,67533.0,67526.0,1.74185097]
[1721583621026,0.00084,67533.0,67526.0,1.69185097]
[1721583621230,0.00084,67533.0,67526.0,1.91395097]
[1721583621436,0.00084,67533.0,67526.0,1.69185097]
[1721583621668,0.00084,67533.0,67526.0,1.66885097]
[1721583622258,0.00084,67533.0,67526.0,1.36141874]
[1721583622379,0.00084,67533.0,67526.0,1.66889375]
[1721583622580,0.00084,67533.0,67526.0,1.59229375]
[1721583625128,0.00084,67533.0,67526.0,1.28481874]
[1721583625330,0.00084,67533.0,67526.0,1.59229124]
[1721583625761,0.00084,67533.0,67526.0,1.59229385]
[1721583626669,0.00084,67533.0,67526.0,0.77974811]
[1721583627524,0.00084,67533.0,67526.0,1.07593011]
[1721583627702,0.00084,67533.0,67526.0,0.77974811]
[1721583628961,0.00084,67533.0,67526.0,1.07593011]
[1721583631497,0.15377,67527.0,67526.0,1.07595733]
[1721583631697,0.15377,67527.0,67526.0,0.33550233]
[1721583632076,0.15377,67527.0,67526.0,0.15100093]
[1721583632283,0.15377,67527.0,67526.0,0.59527393]
[1721583632484,0.15377,67527.0,67526.0,0.83169495]
[1721583632715,0.00837,67527.0,67526.0,0.77978849]
[1721583632890,0.00837,67527.0,67526.0,1.12407049]
[1721583633313,0.00837,67527.0,67526.0,1.13407049]
[1721583633955,0.00837,67527.0,67526.0,1.13207049]
[1721583634117,0.00837,67527.0,67526.0,1.11007049]
[1721583634319,0.00937,67527.0,67526.0,1.41223383]
[1721583634745,0.00837,67527.0,67526.0,1.40623136]
[1721583635067,0.00937,67527.0,67526.0,1.41623136]
[1721583635270,0.00937,67527.0,67526.0,1.41623235]
[1721583636508,0.00937,67527.0,67526.0,1.43023235]
[1721583637357,0.00937,67527.0,67526.0,1.4302279]
[1721583637769,0.00937,67527.0,67526.0,1.122737]
[1721583637978,0.00937,67527.0,67526.0,1.43023158]
[1721583641129,0.00937,67527.0,67526.0,1.43023425]
[1721583642127,0.00937,67527.0,67526.0,2.67883425]
[1721583644178,0.00937,67527.0,67526.0,2.371337]
[1721583644353,0.00937,67527.0,67526.0,2.67882943]
[1721583644770,0.00937,67527.0,67526.0,2.67883192]
[1721583646615,0.00937,67527.0,67526.0,2.38264992]
[1721583646762,0.00937,67527.0,67526.0,2.38264906]
[1721583647528,0.00937,67527.0,67526.0,2.3826486]
[1721583650640,0.00937,67527.0,67526.0,2.6788306]
[1721583652332,0.00937,67527.0,67526.0,3.70128301]
[1721583652511,0.00937,67527.0,67526.0,3.61279339]
[1721583652716,0.00937,67527.0,67526.0,3.75158301]
[1721583652924,0.00937,67527.0,67526.0,3.72937287]
[1721583653129,0.00937,67527.0,67526.0,3.65279007]
[1721583653333,0.00837,67527.0,67526.0,3.63879007]
[1721583653793,0.00937,67527.0,67526.0,3.66674355]
[1721583653965,0.00937,67527.0,67526.0,3.73332967]
[1721583654406,0.00937,67527.0,67526.0,3.66674355]
[1721583655024,0.00937,67527.0,67526.0,3.68333142]
[1721583655366,0.00937,67527.0,67526.0,3.73333142]
[1721583655570,0.00937,67527.0,67526.0,3.61674355]
[1721583655806,0.00937,67527.0,67526.0,3.68333377]
[1721583656006,0.00937,67527.0,67526.0,3.85543523]
[1721583656203,0.00937,67527.0,67526.0,3.68333523]
[1721583656432,0.00937,67527.0,67526.0,3.68333362]
[1721583657077,0.00937,67527.0,67526.0,3.68333422]
[1721583657486,0.00937,67527.0,67526.0,3.10388129]
[1721583657688,0.00937,67527.0,67526.0,3.68333201]
[1721583658082,0.00937,67527.0,67526.0,3.35493851]
[1721583658490,0.00937,67527.0,67526.0,3.28835211]
[1721583658691,0.00937,67527.0,67526.0,3.33835211]
[1721583658920,0.00937,67527.0,67526.0,3.73333332]
[1721583659049,0.00937,67527.0,67526.0,3.66674692]
[1721583659252,0.00937,67527.0,67526.0,3.73333142]
[1721583659653,0.00937,67527.0,67526.0,3.73332939]
[1721583660053,0.00937,67527.0,67526.0,3.03090074]
[1721583660269,0.00937,67527.0,67526.0,3.42587821]
[1721583660491,0.00937,67527.0,67526.0,3.73333068]
[1721583661298,0.00937,67527.0,67526.0,3.40493601]
[1721583662474,0.00937,67527.0,67526.0,3.03090074]
[1721583662681,0.00937,67527.0,67526.0,3.40493291]
[1721583663167,0.00937,67527.0,67526.0,3.35493291]
[1721583663988,0.00937,67527.0,67526.0,3.7333264]
[1721583664388,0.00937,67527.0,67526.0,3.35493291]
[1721583665722,0.00937,67527.0,67526.0,3.35493202]
[1721583665895,0.00937,67527.0,67526.0,3.28835255]
[1721583667066,0.00937,67527.0,67526.0,2.47888855]
[1721583667615,0.00937,67527.0,67526.0,2.77507055]
[1721583667815,0.00937,67527.0,67526.0,2.47888855]
[1721583668021,0.00937,67527.0,67526.0,2.77507055]
[1721583668825,0.00937,67527.0,67526.0,2.6521076]
[1721583669025,0.00937,67527.0,67526.0,2.94720017]
[1721583669227,0.00937,67527.0,67526.0,2.46761874]
[1721583669405,0.00937,67527.0,67526.0,2.77510017]
[1721583670005,0.00937,67527.0,67526.0,2.94720017]
[1721583670210,0.00937,67527.0,67526.0,2.77510017]
[1721583671005,0.00937,67527.0,67526.0,2.94720017]
[1721583671254,0.00937,67527.0,67526.0,2.77510017]
[1721583671457,0.00937,67527.0,67526.0,2.46761874]
[1721583671681,0.00937,67527.0,67526.0,2.77510002]
[1721583672069,0.00937,67527.0,67526.0,2.65101817]
[1721583672280,0.00937,67527.0,67526.0,2.47891817]
[1721583672471,0.00937,67527.0,67526.0,2.77510017]
[1721583673222,0.00937,67527.0,67526.0,2.94720017]
[1721583673424,0.00937,67527.0,67526.0,2.77510017]
[1721583674244,0.00937,67527.0,67526.0,2.94720017]
[1721583674423,0.00937,67527.0,67526.0,2.77510017]
[1721583674828,0.00937,67527.0,67526.0,2.02835443]
[1721583674829,0.09037,67527.0,67526.0,2.02835443]
[1721583675041,0.09037,67527.0,67526.0,2.32453643]
[1721583675246,0.09037,67527.0,67526.0,2.32454235]
[1721583678349,0.09037,67527.0,67526.0,2.017055]
[1721583678597,0.08537,67527.0,67526.0,2.32454465]
[1721583681535,0.08537,67527.0,67526.0,2.3245452]
[1721583682094,0.08537,67527.0,67526.0,2.32454518]
[1721583682293,0.08537,67527.0,67526.0,2.02836318]
[1721583683276,0.08537,67527.0,67526.0,2.32454518]
[1721583684263,0.08537,67527.0,67526.0,2.14005103]
[1721583684459,0.08537,67527.0,67526.0,2.32454508]
[1721583684808,0.08537,67527.0,67526.0,2.017055]
[1721583684965,0.08537,67527.0,67526.0,2.32454513]
[1721583687436,0.00437,67527.0,67526.0,2.32454513]
[1721583687983,0.00437,67527.0,67526.0,2.017055]
[1721583688205,0.00437,67527.0,67526.0,2.324545]
[1721583690033,0.00437,67527.0,67526.0,2.496645]
[1721583690243,0.00437,67527.0,67526.0,2.472545]
[1721583690446,0.00437,67527.0,67526.0,3.01752044]
[1721583690886,0.00437,67527.0,67526.0,2.96752044]
[1721583691308,0.00437,67527.0,67526.0,2.96749446]
[1721583691729,0.00437,67527.0,67526.0,2.96749524]
[1721583692739,0.00437,67527.0,67526.0,2.92308444]
[1721583694146,0.00437,67527.0,67526.0,2.97308444]
[1721583694405,0.00437,67527.0,67526.0,2.61561874]
[1721583694729,0.00437,67527.0,67526.0,2.92308372]
[1721583695382,0.00437,67527.0,67526.0,3.39031225]
[1721583695590,0.00437,67527.0,67526.0,3.75949425]
[1721583695785,0.00437,67527.0,67526.0,3.67067375]
[1721583695990,0.00437,67527.0,67526.0,3.78170583]
[1721583697419,0.00437,67527.0,67526.0,3.67067375]
[1721583697620,0.00437,67527.0,67526.0,3.6706513]
[1721583698934,0.00084,67533.0,67532.0,1.096842]
[1721583698935,0.00021,67533.0,67532.0,1.096842]
[1721583699135,0.00021,67533.0,67532.0,1.73078872]
[1721583699336,0.00021,67533.0,67532.0,1.55868872]
[1721583700140,0.00021,67533.0,67532.0,1.74378872]
[1721583700394,0.00021,67533.0,67532.0,1.57168872]
[1721583700778,0.00021,67533.0,67532.0,1.26422374]
[1721583700991,0.00021,67533.0,67532.0,1.57166854]
[1721583701199,0.00021,67533.0,67532.0,1.58566854]
[1721583703633,0.00021,67533.0,67532.0,1.58567735]
[1721583704100,0.00021,67533.0,67532.0,1.27822374]
[1721583704269,0.00021,67533.0,67532.0,1.58567609]
[1721583704677,0.00021,67533.0,67532.0,2.83427609]
[1721583707377,0.00021,67533.0,67532.0,2.83428]
[1721583710055,0.00021,67533.0,67532.0,3.05638]
[1721583710262,0.00021,67533.0,67532.0,2.88428]
[1721583710458,0.00021,67533.0,67532.0,2.57682374]
[1721583710661,0.00021,67533.0,67532.0,2.8842678]
[1721583711010,0.00021,67533.0,67532.0,2.88426302]
[1721583711376,0.00021,67533.0,67532.0,2.83426302]
[1721583712109,0.00021,67533.0,67532.0,3.01408261]
[1721583712329,0.00021,67533.0,67532.0,2.84198261]
[1721583713125,0.00021,67533.0,67532.0,3.01408455]
[1721583713417,0.00021,67533.0,67532.0,2.84198455]
[1721583713620,0.00021,67533.0,67532.0,2.53454333]
[1721583713849,0.00021,67533.0,67532.0,2.84198286]
[1721583714189,0.00021,67533.0,67532.0,3.01408286]
[1721583714391,0.00021,67533.0,67532.0,2.84198286]
[1721583715145,0.00021,67533.0,67532.0,3.01408286]
[1721583715346,0.00021,67533.0,67532.0,2.84198286]
[1721583716167,0.00021,67533.0,67532.0,3.01408286]
[1721583716508,0.00021,67533.0,67532.0,2.84198286]
[1721583716915,0.00021,67533.0,67532.0,2.53454333]